bitfinex/quotes_ETHUSD_20240822
["timestamp","ask_amount","ask_price","bid_price","bid_amount"]
[1724311879033,17.11752365,2634.8,2634.7,0.59366531]
[1724311879245,16.71860264,2634.8,2634.7,0.59370836]
[1724311882254,16.71860264,2634.8,2634.7,0.59370896]
[1724311882255,16.64942365,2634.8,2634.7,0.59370896]
[1724311882546,16.64942365,2634.8,2634.2,1.295]
[1724311882547,7.21162365,2634.8,2634.2,1.295]
[1724311882755,0.79651741,2634.5,2634.3,0.59373981]
[1724311883050,0.79651741,2634.5,2634.4,0.59373981]
[1724311883347,10.59031741,2634.6,2634.4,0.59373981]
[1724311883641,12.23318184,2634.6,2634.5,0.59373981]
[1724311883856,12.23318184,2634.6,2633.9,4.9795025]
[1724311884075,12.23318184,2634.6,2633.5,0.4008822]
[1724311884076,14.25602266,2634.1,2634.0,0.59376926]
[1724311884254,6.286304,2634.1,2633.5,0.59376926]
[1724311884460,10.4592975,2633.9,2633.6,1.06890119]
[1724311884661,10.4592975,2633.9,2633.7,1.06890119]
[1724311884976,2.36206676,2634.0,2633.8,1.06890119]
[1724311884977,11.626918,2634.0,2633.8,1.06890119]
[1724311885124,11.626918,2634.0,2633.9,1.06890119]
[1724311885326,10.8306205,2634.0,2633.9,1.77013193]
[1724311885644,10.8306205,2634.0,2633.9,1.295]
[1724311885835,10.8306205,2634.0,2633.9,1.88886169]
[1724311886169,10.8306205,2634.0,2633.9,1.295]
[1724311886725,10.8306205,2634.0,2633.9,1.88886169]
[1724311886925,10.8306205,2634.0,2633.9,1.295]
[1724311889373,10.8306205,2634.0,2633.7,1.88885186]
[1724311889578,1.08306205,2633.9,2633.7,4.295]
[1724311889870,1.08306205,2633.9,2633.7,1.295]
[1724311890074,1.08306205,2633.9,2633.5,0.59385186]
[1724311890271,1.08306205,2633.9,2633.7,1.295]
[1724311890575,1.57101926,2633.8,2633.7,1.295]
[1724311894631,11.56381926,2633.8,2633.7,1.295]
[1724311895518,11.61390552,2633.8,2633.7,1.295]
[1724311896422,0.05008626,2633.8,2633.7,1.295]
[1724311896643,9.8746,2634.0,2633.7,1.295]
[1724311896940,9.8746,2634.0,2633.9,1.295]
[1724311900692,3.79608,2634.3,2633.9,1.295]
[1724311900899,9.4895,2634.3,2633.9,1.295]
[1724311903497,17.08173,2634.3,2633.9,1.295]
[1724311903742,17.8780375,2634.3,2633.9,1.295]
[1724311903906,9.7361,2634.0,2633.6,3.59387472]
[1724311904107,9.7361,2633.8,2633.7,2.95]
[1724311904642,9.7361,2633.8,2633.5,1.295]
[1724311904643,13.53291,2633.8,2633.5,1.295]
[1724311906715,13.53291,2633.8,2633.5,1.265]
[1724311906916,1.4886157,2633.7,2633.5,1.265]
[1724311909141,1.56530193,2633.7,2633.5,1.265]
[1724311909564,1.4886157,2633.7,2633.5,1.85887472]
[1724311909770,1.4886157,2633.7,2633.5,1.265]
[1724311909931,1.67747157,2633.6,2633.5,1.265]
[1724311910363,1.67747157,2633.6,2633.5,1.85887472]
[1724311910666,1.7271461,2633.6,2633.5,1.265]
[1724311911458,1.7271461,2633.6,2633.5,1.85896642]
[1724311912022,1.7271461,2633.6,2633.5,1.85895709]
[1724311912832,1.80383233,2633.6,2633.5,1.85895709]
[1724311913828,15.35751233,2633.6,2633.5,0.59395709]
[1724311914038,9.7566,2633.3,2633.1,0.59403033]
[1724311914247,9.7566,2633.3,2632.8,1.295]
[1724311914248,0.07668623,2633.2,2632.8,1.295]
[1724311914574,0.12609764,2633.2,2633.0,1.295]
[1724311914718,1.48916926,2633.2,2633.1,0.5940596]
[1724311915833,3.79823,2632.8,2632.1,9.31]
[1724311915917,0.379823,2632.7,2632.4,1.295]
[1724311916123,0.04895979,2632.6,2632.4,1.295]
[1724311916643,0.12564602,2632.6,2632.4,1.295]
[1724311916853,0.04895979,2632.6,2632.4,1.295]
[1724311917056,1.04563807,2632.6,2632.4,1.295]
[1724311918458,1.04563807,2632.6,2632.2,3.0]
[1724311921242,0.07668623,2632.5,2632.2,3.0]
[1724311921570,0.04874748,2632.4,2632.2,3.0]
[1724311922122,0.99667828,2632.6,2632.2,3.0]
[1724311922450,0.0487551,2632.5,2632.2,3.0]
[1724311923744,11.23794,2633.1,2632.2,3.0]
[1724311923745,17.3995,2633.1,2632.4,9.3059]
[1724311923946,1.68863464,2633.0,2632.5,3.0]
[1724311925774,0.04875748,2633.0,2632.6,9.1561]
[1724311926097,5.55,2632.7,2632.6,9.1561]
[1724311926305,5.55,2632.7,2632.6,12.1561]
[1724311926471,5.59859707,2632.7,2632.6,12.1561]
[1724311929509,5.59859707,2632.7,2632.6,3.0]
[1724311929723,6.15845678,2632.7,2632.4,3.0]
[1724311930002,5.55,2632.6,2632.4,3.0]
[1724311930170,0.04863109,2632.5,2632.4,3.0]
[1724311932817,0.04863109,2632.5,2632.4,12.8923]
[1724311933218,0.04863109,2632.5,2632.4,13.24770674]
[1724311933391,0.04863109,2632.5,2632.4,13.2726]
[1724311933941,0.04863109,2632.5,2632.4,13.62798918]
[1724311934173,0.04863109,2632.5,2632.4,13.2726]
[1724311934292,11.1,2632.6,2632.4,13.62801946]
[1724311934487,11.1,2632.6,2632.4,13.2726]
[1724311934729,0.04863476,2632.5,2632.4,13.2726]
[1724311934887,0.04863476,2632.5,2632.4,13.6279954]
[1724311935089,0.04863476,2632.5,2632.4,13.2726]
[1724311935350,0.04863476,2632.5,2632.4,13.62802184]
[1724311936485,0.04863476,2632.5,2632.4,18.32141]
[1724311936752,0.04863476,2632.5,2632.4,18.6767958]
[1724311936905,5.59863476,2632.5,2632.4,18.6767958]
[1724311937788,5.59863476,2632.5,2632.4,25.0028358]
[1724311938022,5.59863476,2632.5,2632.4,18.6767958]
[1724311938230,5.59863476,2632.5,2632.4,18.5849858]
[1724311938389,5.59863476,2632.5,2632.4,13.9476858]
[1724311938589,6.49828279,2632.5,2632.4,4.297]
[1724311938809,5.59863476,2632.5,2632.4,1.297]
[1724311939443,11.14863476,2632.5,2632.4,1.297]
[1724311940124,11.14863476,2632.5,2632.4,16.05301]
[1724311940330,11.14863476,2632.5,2632.4,19.40843017]
[1724311941093,11.14863476,2632.5,2632.4,23.20724017]
[1724311941289,11.09863476,2632.5,2632.4,22.85182]
[1724311941496,11.1456801,2632.5,2632.4,23.20715683]
[1724311942201,11.1456801,2632.5,2632.4,23.77569811]
[1724311942896,11.1456801,2632.5,2632.4,19.97688811]
[1724311943096,11.1456801,2632.5,2632.4,19.40834683]
[1724311943344,11.1456801,2632.5,2632.4,19.9769512]
[1724311945899,11.1456801,2632.5,2632.4,19.40834683]
[1724311946209,11.1456801,2632.5,2632.4,15.6096083]
[1724311946450,11.1456801,2632.5,2632.4,6.2827083]
[1724311946741,11.1456801,2632.5,2632.4,5.9273]
[1724311947193,11.1456801,2632.5,2632.4,22.80902]
[1724311947395,11.1456801,2632.5,2632.4,23.73310397]
[1724311947594,11.1456801,2632.5,2632.4,19.93429397]
[1724311947825,11.1456801,2632.5,2632.4,19.3656183]
[1724311949650,11.1456801,2632.5,2632.4,23.1644283]
[1724311949967,11.1456801,2632.5,2632.4,23.73310397]
[1724311950460,11.1456801,2632.5,2632.4,25.05346746]
[1724311950949,11.1456801,2632.5,2632.4,25.05342641]
[1724311951095,11.1456801,2632.5,2632.4,27.03391014]
[1724311951297,11.1456801,2632.5,2632.4,25.05342641]
[1724311951515,11.1456801,2632.5,2632.4,21.25461641]
[1724311951772,11.1456801,2632.5,2632.4,16.88713074]
[1724311952057,11.1456801,2632.5,2632.4,15.5668083]
[1724311952399,11.1456801,2632.5,2632.4,5.9024083]
[1724311952600,11.1456801,2632.5,2632.4,4.997]
[1724311952802,11.1456801,2632.5,2632.4,5.35239458]
[1724311953448,11.1456801,2632.5,2632.4,2.35239458]
[1724311954331,16.6956801,2632.5,2632.4,2.35239458]
[1724311955835,16.6956801,2632.5,2632.4,1.997]
[1724311956189,16.6956801,2632.5,2632.4,2.35244783]
[1724311956673,22.2456801,2632.5,2632.4,2.35244783]
[1724311958240,22.2456801,2632.5,2632.4,1.65244783]
[1724311958656,22.2456801,2632.5,2632.4,2.97289492]
[1724311958857,22.2456801,2632.5,2632.4,6.54161145]
[1724311959139,27.7956801,2632.5,2632.4,20.16862145]
[1724311959365,27.7956801,2632.5,2632.4,28.16181873]
[1724311959560,24.32292445,2632.5,2632.4,46.45371359]
[1724311959768,23.52638825,2632.5,2632.4,81.84872411]
[1724311960414,23.52638825,2632.5,2632.4,78.04918438]
[1724311960760,23.52638825,2632.5,2632.4,81.84799438]
[1724311961111,22.11819619,2632.5,2632.4,81.85876735]
[1724311961297,22.11819619,2632.5,2632.4,81.42610257]
[1724311961513,27.66819619,2632.5,2632.4,79.8377266]
[1724311962297,27.66819619,2632.5,2632.4,78.02482378]
[1724311962497,27.66819619,2632.5,2632.4,74.4037505]
[1724311962678,27.66819619,2632.5,2632.4,75.54361723]
[1724311963074,27.66819619,2632.5,2632.4,77.13149437]
[1724311963369,27.66819619,2632.5,2632.4,77.52952441]
[1724311963879,30.53759619,2632.5,2632.4,77.52952441]
[1724311964416,30.53759619,2632.5,2632.4,77.71652271]
[1724311965078,30.53759619,2632.5,2632.4,77.71490255]
[1724311966111,30.53759619,2632.5,2632.4,75.73018201]
[1724311966285,36.08759619,2632.5,2632.4,77.71469137]
[1724311966468,36.08759619,2632.5,2632.4,77.31757586]
[1724311968110,33.40699619,2632.5,2632.4,65.41508201]
[1724311968618,33.40699619,2632.5,2632.4,96.43632101]
[1724311968815,38.95699619,2632.5,2632.4,98.02392327]
[1724311969017,38.95699619,2632.5,2632.4,96.12476401]
[1724311969344,38.95699619,2632.5,2632.4,97.71224147]
[1724311969612,38.6842059,2632.5,2632.4,94.84586355]
[1724311969816,35.281479,2632.5,2632.4,102.12428148]
[1724311970016,29.36770066,2632.5,2632.4,103.93884765]
[1724311970161,28.89770066,2632.5,2632.4,103.97111687]
[1724311970365,28.89770066,2632.5,2632.4,101.98734227]
[1724311970595,24.87341453,2632.5,2632.4,101.98734227]
[1724311970911,17.58903673,2632.5,2632.4,111.06447797]
[1724311971214,21.02713424,2632.5,2632.4,111.06447797]
[1724311971406,19.46053424,2632.5,2632.4,108.68341206]
[1724311971606,19.46053424,2632.5,2632.4,111.06270572]
[1724311972258,19.06911607,2632.5,2632.4,111.06270572]
[1724311972863,19.06911607,2632.5,2632.4,110.35200439]
[1724311973464,24.61911607,2632.5,2632.4,110.35200439]
[1724311973885,20.14311607,2632.5,2632.4,110.35200439]
[1724311974102,20.14311607,2632.5,2632.4,107.97271073]
[1724311974304,20.14311607,2632.5,2632.4,110.35200439]
[1724311974616,20.14311607,2632.5,2632.4,110.34988872]
[1724311974777,20.14311607,2632.5,2632.4,107.97221952]
[1724311974983,20.14311607,2632.5,2632.4,106.48010349]
[1724311975184,18.32191607,2632.5,2632.4,102.68129349]
[1724311975362,18.32191607,2632.5,2632.4,99.35163173]
[1724311975566,18.32191607,2632.5,2632.4,99.89252014]
[1724311975776,18.32191607,2632.5,2632.4,98.90105476]
[1724311976013,23.87191607,2632.5,2632.4,98.90105476]
[1724311976217,23.87191607,2632.5,2632.4,99.89273955]
[1724311976401,23.87191607,2632.5,2632.4,100.48667747]
[1724311976584,23.87191607,2632.5,2632.4,100.48718867]
[1724311976990,23.87191607,2632.5,2632.4,101.03718867]
[1724311978280,26.74131607,2632.5,2632.4,99.45177586]
[1724311978482,26.74131607,2632.5,2632.4,101.9282601]
[1724311979186,26.74131607,2632.5,2632.4,101.92763153]
[1724311979387,25.91841607,2632.5,2632.4,104.99649448]
[1724311979582,25.91841607,2632.5,2632.4,106.15868032]
[1724311980030,25.91841607,2632.5,2632.4,101.92746835]
[1724311980536,25.91841607,2632.5,2632.4,101.03693351]
[1724311980679,31.46841607,2632.5,2632.4,101.03693351]
[1724311980882,30.06033321,2632.5,2632.4,101.03693351]
[1724311981538,30.06033321,2632.5,2632.4,99.45135074]
[1724311981831,27.79582239,2632.5,2632.4,100.46867744]
[1724311982044,27.42447532,2632.5,2632.4,101.03708392]
[1724311982602,27.42447532,2632.5,2632.4,97.73704816]
[1724311982825,27.42447532,2632.5,2632.4,70.32757044]
[1724311983052,27.42447532,2632.5,2632.4,113.18850244]
[1724311983217,32.97447532,2632.5,2632.4,98.52529164]
[1724311983412,32.97447532,2632.5,2632.4,89.08799164]
[1724311985002,32.97447532,2632.5,2632.4,88.49406187]
[1724311985203,32.97447532,2632.5,2632.4,87.89876618]
[1724311985503,38.52447532,2632.5,2632.4,89.08801855]
[1724311985952,38.52447532,2632.5,2632.4,87.89876618]
[1724311986520,38.52447532,2632.5,2632.4,89.48434895]
[1724311987023,38.52447532,2632.5,2632.4,89.97887335]
[1724311987024,37.88007532,2632.5,2632.4,89.97887335]
[1724311987546,37.88007532,2632.5,2632.4,89.97875532]
[1724311987853,35.19947532,2632.5,2632.4,104.44154131]
[1724311988157,40.74947532,2632.5,2632.4,105.20171875]
[1724311988498,40.74947532,2632.5,2632.4,104.76931678]
[1724311988901,40.21477533,2632.5,2632.4,100.97050678]
[1724311989153,40.21477533,2632.5,2632.4,84.73754881]
[1724311990004,38.96177533,2632.5,2632.4,84.73754881]
[1724311990209,38.96177533,2632.5,2632.4,84.55055051]
[1724311990455,44.51177533,2632.5,2632.4,84.55055051]
[1724311991261,44.51177533,2632.5,2632.4,83.45958469]
[1724311991741,44.51177533,2632.5,2632.4,87.25839469]
[1724311991957,41.83117533,2632.5,2632.4,89.67265345]
[1724311992105,41.83117533,2632.5,2632.4,89.23998336]
[1724311992310,41.83117533,2632.5,2632.4,85.44117336]
[1724311992729,47.38117533,2632.5,2632.4,89.23998336]
[1724311993469,47.38117533,2632.5,2632.4,96.79475862]
[1724311993850,47.38117533,2632.5,2632.4,99.56261897]
[1724311994772,44.70057533,2632.5,2632.4,97.64008477]
[1724311994938,44.70057533,2632.5,2632.4,98.80215718]
[1724311995119,50.25057533,2632.5,2632.4,99.56229082]
[1724311996657,50.25057533,2632.5,2632.4,101.44583611]
[1724311996861,50.25057533,2632.5,2632.4,99.0676075]
[1724311997293,50.25057533,2632.5,2632.4,85.7322975]
[1724311997496,55.80057533,2632.5,2632.4,85.7322975]
[1724311997988,55.80057533,2632.5,2632.4,83.81009145]
[1724311998189,55.80057533,2632.5,2632.4,85.73233715]
[1724311999145,55.80057533,2632.5,2632.4,91.9089975]
[1724311999347,55.80057533,2632.5,2632.4,88.1101875]
[1724311999775,61.35057533,2632.5,2632.4,88.1101875]
[1724312000093,61.35057533,2632.5,2632.4,101.4862219]
[1724312000840,61.35057533,2632.5,2632.4,97.6874119]
[1724312000999,59.94265813,2632.5,2632.4,97.6874119]
[1724312001150,59.94265813,2632.5,2632.4,88.6047119]
[1724312001350,59.94265813,2632.5,2632.4,85.46665076]
[1724312001552,59.94265813,2632.5,2632.4,86.22690798]
[1724312002098,59.94265813,2632.5,2632.4,87.84570323]
[1724312002261,65.49265813,2632.5,2632.4,87.84570323]
[1724312002611,65.49265813,2632.5,2632.4,87.25184475]
[1724312002956,65.49265813,2632.5,2632.4,85.95484475]
[1724312003154,65.49265813,2632.5,2632.4,87.25184475]
[1724312004717,71.04265813,2632.5,2632.4,87.25193265]
[1724312005050,71.04265813,2632.5,2632.4,84.87299855]
[1724312005493,71.04265813,2632.5,2632.4,88.67180855]
[1724312005664,71.04265813,2632.5,2632.4,97.86160855]
[1724312005978,71.04265813,2632.5,2632.4,99.52443787]
[1724312006183,71.04265813,2632.5,2632.4,98.20447402]
[1724312006348,71.04265813,2632.5,2632.4,95.72557145]
[1724312006691,71.04265813,2632.5,2632.4,86.53577145]
[1724312006849,76.59265813,2632.5,2632.4,84.87294213]
[1724312007955,76.59265813,2632.5,2632.4,83.08141773]
[1724312008151,76.59265813,2632.5,2632.4,80.02960773]
[1724312008409,85.76015813,2632.5,2632.4,57.25141673]
[1724312008569,85.76015813,2632.5,2632.4,73.91566273]
[1724312009058,85.76015813,2632.5,2632.4,77.71447273]
[1724312009412,82.14265813,2632.5,2632.4,77.71447273]
[1724312009909,82.14265813,2632.5,2632.4,78.26447273]
[1724312010284,91.61365813,2632.5,2632.4,27.71598838]
[1724312010480,92.86465838,2632.5,2632.4,8.78109596]
[1724312010707,92.86465838,2632.5,2632.4,3.76341793]
[1724312010851,92.86465838,2632.5,2632.4,2.58870394]
[1724312011267,92.86465838,2632.5,2632.4,2.02043961]
[1724312011453,92.86465838,2632.5,2632.4,2.58870394]
[1724312011789,98.41465838,2632.5,2632.4,2.58870394]
[1724312011967,98.41465838,2632.5,2632.4,5.58870394]
[1724312012299,98.41465838,2632.5,2632.4,0.7]
[1724312012503,98.41465838,2632.5,2632.4,3.7]
[1724312012666,98.41465838,2632.5,2632.4,0.7]
[1724312013997,103.96465838,2632.5,2632.4,0.7]
[1724312015472,9.5907,2632.4,2632.1,0.7]
[1724312015670,9.5907,2632.2,2632.1,0.7]
[1724312015929,9.5907,2632.2,2632.1,1.6303]
[1724312016173,9.6335616,2632.2,2632.1,1.6303]
[1724312018868,9.6335616,2632.2,2632.1,18.54786737]
[1724312019081,9.6335616,2632.2,2632.1,22.16742867]
[1724312019397,9.6335616,2632.2,2632.1,22.73642917]
[1724312019756,9.6335616,2632.2,2632.1,8.31330464]
[1724312019988,9.6335616,2632.2,2632.1,10.3473]
[1724312023429,9.6335616,2632.2,2632.1,4.6303]
[1724312023707,9.6335616,2632.2,2632.1,1.6303]
[1724312024276,9.6335616,2632.2,2632.1,1.25]
[1724312026182,10.59691776,2632.2,2632.1,0.7]
[1724312029105,9.6335616,2632.2,2632.1,0.7]
[1724312032505,9.6335616,2632.2,2632.1,1.998]
[1724312035365,9.6335616,2632.2,2632.1,1.298]
[1724312035930,9.6335616,2632.2,2631.9,1.298]
[1724312038523,9.6187616,2632.2,2631.9,1.298]
[1724312038721,0.90374648,2632.1,2631.9,1.298]
[1724312038936,0.04189827,2632.0,2631.9,1.298]
[1724312039159,148.69791602,2632.5,2631.9,1.298]
[1724312039345,0.04192877,2632.4,2631.9,1.298]
[1724312041514,9.594,2632.3,2631.9,1.298]
[1724312041750,0.04191352,2632.2,2631.9,1.298]
[1724312041947,13.52644067,2632.3,2631.9,1.298]
[1724312042152,0.04191352,2632.2,2631.9,1.298]
[1724312042449,13.52644067,2632.3,2631.9,1.298]
[1724312042745,9.594,2632.2,2631.9,1.298]
[1724312042952,0.0419059,2632.1,2631.9,1.298]
[1724312046455,1.39874056,2632.1,2631.9,1.298]
[1724312047760,1.39874056,2632.1,2631.8,3.0]
[1724312047761,9.42778623,2632.0,2631.8,3.0]
[1724312047937,0.0417211,2631.9,2631.6,0.3803]
[1724312048143,9.6223,2631.7,2631.6,0.3803]
[1724312048314,9.66400585,2631.7,2631.5,3.7]
[1724312048738,9.66400585,2631.7,2631.5,0.7]
[1724312049562,9.6223,2631.7,2631.5,0.7]
[1724312049749,9.6223,2631.7,2631.6,1.298]
[1724312049914,9.66386806,2631.7,2631.6,1.298]
[1724312052968,0.04156806,2631.7,2631.6,1.298]
[1724312053164,9.2794,2632.0,2631.6,6.1424044]
[1724312053363,9.2794,2632.0,2631.9,1.298]
[1724312055122,9.2794,2632.4,2631.9,1.298]
[1724312056307,9.2794,2632.4,2631.9,1.65402506]
[1724312056505,3.93244067,2632.3,2631.9,1.65402506]
[1724312057594,3.93244067,2632.3,2632.0,0.35602506]
[1724312057995,3.93244067,2632.3,2631.9,1.298]
[1724312058198,3.93244067,2632.3,2632.0,0.35598276]
[1724312059890,3.93244067,2632.3,2632.1,0.35598276]
[1724312060214,3.93244067,2632.3,2632.0,0.35598276]
[1724312060380,1.32118407,2632.2,2632.0,0.35598276]
[1724312060585,9.28740316,2632.1,2632.0,0.35598276]
[1724312061312,9.28740316,2632.1,2631.9,1.298]
[1724312061469,9.28740316,2632.1,2632.0,0.35606314]
[1724312064677,9.28740316,2632.1,2632.0,0.3559814]
[1724312065893,0.04150316,2632.1,2632.0,0.3559814]
[1724312066399,158.99731352,2632.5,2632.0,0.3559814]
[1724312066601,9.5031,2632.3,2632.1,0.3559814]
[1724312066915,9.5031,2632.3,2632.2,0.3559814]
[1724312067125,9.5031,2632.3,2632.0,0.3559814]
[1724312067320,9.5031,2632.3,2632.1,0.3559814]
[1724312067619,9.5031,2632.3,2632.2,0.3559814]
[1724312067822,9.5031,2632.3,2631.9,1.298]
[1724312067823,9.5031,2632.3,2632.0,0.3559814]
[1724312068046,13.43554067,2632.3,2632.1,0.3559814]
[1724312068191,9.5031,2632.3,2632.2,0.3559814]
[1724312068391,9.5031,2632.3,2632.0,0.3559814]
[1724312068608,9.5031,2632.3,2632.1,0.3559814]
[1724312068831,9.5031,2632.3,2632.2,0.3559814]
[1724312069031,13.43554067,2632.3,2632.2,0.3559814]
[1724312070236,14.23183817,2632.3,2632.2,0.3559814]
[1724312071246,14.23183817,2632.3,2631.9,1.298]
[1724312071537,9.5031,2632.3,2631.9,1.298]
[1724312071693,10.2993975,2632.3,2632.0,0.35598373]
[1724312071894,10.2993975,2632.3,2632.1,0.35598373]
[1724312072143,10.2993975,2632.3,2632.2,0.35598373]
[1724312072443,14.23183817,2632.3,2632.2,0.35598373]
[1724312073216,13.43554067,2632.3,2632.2,0.35598373]
[1724312073418,18.42895693,2632.3,2631.9,0.35598373]
[1724312073617,0.79755668,2632.1,2632.0,0.35598373]
[1724312074139,10.46095668,2632.1,2632.0,0.35598373]
[1724312074515,9.6634,2632.1,2631.8,1.998]
[1724312074726,9.6634,2632.1,2632.0,0.35610353]
[1724312075026,11.84163215,2632.1,2632.0,0.35610353]
[1724312075643,11.88317241,2632.1,2632.0,0.35610353]
[1724312076031,12.68072909,2632.1,2632.0,0.35610353]
[1724312077852,12.68072909,2632.1,2631.8,1.998]
[1724312078036,10.50249694,2632.1,2632.0,0.3560984]
[1724312078335,9.70494026,2632.1,2632.0,0.3560984]
[1724312080545,10.50249694,2632.1,2632.0,0.3560984]
[1724312081197,9.70494026,2632.1,2631.8,1.998]
[1724312081559,9.70494026,2632.1,2631.9,0.3560619]
[1724312081801,9.70494026,2632.1,2631.8,1.998]
[1724312082176,9.70494026,2632.1,2632.0,0.35606459]
[1724312082476,9.70494026,2632.1,2631.8,1.998]
[1724312082628,0.04154026,2632.1,2632.0,1.298]
[1724312082859,0.04154026,2632.1,2632.0,4.298]
[1724312083143,0.04091693,2632.1,2632.0,2.61865872]
[1724312083326,0.79755668,2632.4,2632.1,0.7]
[1724312083534,0.04093218,2632.3,2632.2,1.298]
[1724312085341,0.04094278,2632.3,2632.2,1.298]
[1724312086236,148.69791602,2632.5,2632.4,0.7]
[1724312086432,148.69791602,2632.5,2632.4,16.12531]
[1724312086637,148.69791602,2632.5,2632.4,23.22190592]
[1724312087173,148.69791602,2632.5,2632.4,19.42309592]
[1724312088350,148.69791602,2632.5,2632.4,18.62745528]
[1724312088557,148.69791602,2632.5,2632.4,22.42626528]
[1724312088888,148.69791602,2632.5,2632.4,18.62745528]
[1724312089397,148.69791602,2632.5,2632.4,18.62729593]
[1724312090645,148.69791602,2632.5,2632.4,22.42610593]
[1724312090646,148.73787097,2632.5,2632.4,22.42610593]
[1724312090882,148.73787097,2632.5,2632.4,23.22174657]
[1724312091409,148.73787097,2632.5,2632.4,22.42597755]
[1724312092297,148.73787097,2632.5,2632.4,18.62716755]
[1724312092807,148.73787097,2632.5,2632.4,16.64676702]
[1724312093356,148.73787097,2632.5,2632.4,6.86834222]
[1724312095254,148.73787097,2632.5,2632.4,5.548]
[1724312095466,148.73787097,2632.5,2632.4,6.86833962]
[1724312095870,148.73787097,2632.5,2632.4,5.548]
[1724312096064,148.73787097,2632.5,2632.4,6.86832386]
[1724312096917,148.73787097,2632.5,2632.4,6.86830214]
[1724312098067,148.73787097,2632.5,2632.4,5.548]
[1724312098261,148.73787097,2632.5,2632.4,6.86832025]
[1724312098496,148.73787097,2632.5,2632.4,10.66713025]
[1724312100063,148.73787097,2632.5,2632.4,14.46594025]
[1724312100260,148.73787097,2632.5,2632.4,42.64520445]
[1724312100520,147.94576174,2632.5,2632.4,41.31465969]
[1724312100705,147.94576174,2632.5,2632.4,76.31444477]
[1724312100921,147.94576174,2632.5,2632.4,75.33226577]
[1724312101542,147.94576174,2632.5,2632.4,75.32960221]
[1724312103602,146.53763506,2632.5,2632.4,75.32923321]
[1724312104049,146.53763506,2632.5,2632.4,74.00894613]
[1724312104343,146.53763506,2632.5,2632.4,75.32905083]
[1724312104843,146.53763506,2632.5,2632.4,74.53644275]
[1724312105027,146.53763506,2632.5,2632.4,75.32905083]
[1724312105337,146.53763506,2632.5,2632.4,74.53644275]
[1724312105840,146.53763506,2632.5,2632.4,72.88145275]
[1724312106140,146.53763506,2632.5,2632.4,73.06651962]
[1724312108805,146.53763506,2632.5,2632.4,73.0667066]
[1724312109168,146.53763506,2632.5,2632.4,73.0666645]
[1724312111233,146.53763506,2632.5,2632.4,71.08643736]
[1724312112028,146.53763506,2632.5,2632.4,73.06667584]
[1724312112233,146.53763506,2632.5,2632.4,89.55697336]
[1724312112444,146.53763506,2632.5,2632.4,90.12581503]
[1724312113416,146.53763506,2632.5,2632.4,89.88860637]
[1724312115542,124.51968133,2632.5,2632.4,96.10005075]
[1724312115743,124.06968133,2632.5,2632.4,104.88699308]
[1724312115917,124.06968133,2632.5,2632.4,101.08818308]
[1724312116322,121.95779391,2632.5,2632.4,104.31839454]
[1724312116569,80.60119391,2632.5,2632.4,104.8870016]
[1724312116777,80.60119391,2632.5,2632.4,100.69108886]
[1724312116974,80.60119391,2632.5,2632.4,100.25868689]
[1724312118115,80.60119391,2632.5,2632.4,100.2581587]
[1724312118388,79.71127391,2632.5,2632.4,100.2581587]
[1724312119091,79.71127391,2632.5,2632.4,99.68955164]
[1724312119257,79.71127391,2632.5,2632.4,100.25817622]
[1724312119834,78.85927391,2632.5,2632.4,100.25817622]
[1724312120480,73.00447391,2632.5,2632.4,100.25817622]
[1724312121348,73.00447391,2632.5,2632.4,100.07310935]
[1724312122383,73.00447391,2632.5,2632.4,99.50448477]
[1724312122588,73.00447391,2632.5,2632.4,100.07342245]
[1724312122884,73.00447391,2632.5,2632.4,100.07336732]
[1724312123639,71.59655632,2632.5,2632.4,100.07336732]
[1724312125274,71.59655632,2632.5,2632.4,100.07337586]
[1724312126187,71.59655632,2632.5,2632.4,98.49013628]
[1724312127315,71.59655632,2632.5,2632.4,100.4713713]
[1724312127799,71.59655632,2632.5,2632.4,91.03751776]
[1724312127957,71.59655632,2632.5,2632.4,84.89623612]
[1724312128164,71.59655632,2632.5,2632.4,74.89986817]
[1724312128390,71.59655632,2632.5,2632.4,69.76295968]
[1724312128639,71.59655632,2632.5,2632.4,62.78545368]
[1724312128765,71.59655632,2632.5,2632.4,62.216516]
[1724312128964,71.59655632,2632.5,2632.4,59.78575668]
[1724312129971,71.59655632,2632.5,2632.4,60.33575668]
[1724312130171,71.59655632,2632.5,2632.4,63.33575668]
[1724312130400,71.59655632,2632.5,2632.4,60.03583432]
[1724312130596,71.59655632,2632.5,2632.4,62.14599797]
[1724312130904,71.59655632,2632.5,2632.4,63.73182531]
[1724312131081,71.59655632,2632.5,2632.4,62.14599797]
[1724312131281,71.59655632,2632.5,2632.4,63.73182531]
[1724312132393,71.59655632,2632.5,2632.4,60.43164176]
[1724312132599,71.59655632,2632.5,2632.4,63.73174719]
[1724312132973,71.59655632,2632.5,2632.4,67.53055719]
[1724312133511,71.59655632,2632.5,2632.4,77.58161823]
[1724312133701,71.59655632,2632.5,2632.4,75.5957065]
[1724312133906,71.59655632,2632.5,2632.4,66.4392065]
[1724312134513,71.59655632,2632.5,2632.4,65.7392065]
[1724312134807,71.59655632,2632.5,2632.4,66.4392065]
[1724312135015,71.59655632,2632.5,2632.4,68.42516218]
[1724312135231,71.59655632,2632.5,2632.4,66.4392065]
[1724312135398,71.59655632,2632.5,2632.4,68.42516218]
[1724312138425,71.59655632,2632.5,2632.4,33.42516218]
[1724312139056,71.59655632,2632.5,2632.4,68.42516218]
[1724312141974,71.59655632,2632.5,2632.4,33.42516218]
[1724312142279,71.59655632,2632.5,2632.4,33.42681865]
[1724312142477,71.59655632,2632.5,2632.4,68.78262908]
[1724312143656,70.18851519,2632.5,2632.4,68.78262908]
[1724312143983,70.18851519,2632.5,2632.4,68.78342925]
[1724312145204,70.18851519,2632.5,2632.4,67.48542925]
[1724312145506,79.90161519,2632.5,2632.4,63.12967685]
[1724312146297,79.90161519,2632.5,2632.4,61.1413012]
[1724312146501,79.90161519,2632.5,2632.4,63.12967685]
[1724312146705,79.90161519,2632.5,2632.4,77.34433685]
[1724312147004,79.90161519,2632.5,2632.4,74.99433685]
[1724312148025,79.90161519,2632.5,2632.4,74.06928574]
[1724312148364,79.90161519,2632.5,2632.4,74.99473892]
[1724312149188,70.18851519,2632.5,2632.4,74.99473892]
[1724312149479,70.18851519,2632.5,2632.4,73.50088767]
[1724312149720,70.18851519,2632.5,2632.4,76.10172344]
[1724312150089,70.18851519,2632.5,2632.4,79.90053344]
[1724312150306,67.50791519,2632.5,2632.4,94.04954541]
[1724312150509,59.69820527,2632.5,2632.4,98.49598873]
[1724312150712,55.89952527,2632.5,2632.4,95.71226281]
[1724312150915,55.89952527,2632.5,2632.4,98.49598873]